fUST/lending_fUST_20250531
["ID","MTS","AMOUNT","RATE_DAILY","PERIOD"]
[363331388,1748679044629,-40.83084827,0.00019178,2]
[363331389,1748679044745,-243.71120292,0.00016338,2]
[363331390,1748679044755,-446.91615834,0.00019178,2]
[363331391,1748679047022,-123.42299339,0.00019178,2]
[363331392,1748679047031,-943.81,0.00019178,2]
[363331393,1748679047041,-430.0,0.00019178,2]
[363331394,1748679047050,-665.76,0.00019178,2]
[363331395,1748679047060,-766.35,0.00019178,2]
[363331396,1748679047070,-450.97,0.00019178,2]
[363331397,1748679047079,-1196.33,0.00019178,2]
[363331398,1748679047088,-430.0,0.00019178,2]
[363331399,1748679047098,-3551.36,0.00019178,2]
[363331400,1748679047107,-151.0,0.00019178,2]
[363331401,1748679047117,-391.035285,0.00019178,2]
[363331402,1748679047127,-157.14085379,0.00019233,2]
[363331403,1748679047136,-2000.0,0.0001926,2]
[363331404,1748679047146,-900.0,0.0001926,2]
[363331405,1748679047155,-500.0,0.00019307,2]
[363331406,1748679047165,-41218.01644711,0.00019329,2]
[363331407,1748679047175,-3061.8488444,0.00019383,2]
[363331408,1748679047185,-152.79536372,0.00019426,2]
[363331409,1748679047194,-151.0,0.00019426,2]
[363331410,1748679047204,-151.0,0.00019426,2]
[363331411,1748679047213,-685.27,0.00019451,2]
[363331412,1748679047223,-890.96,0.00019451,2]
[363331413,1748679047233,-819.81,0.00019451,2]
[363331414,1748679047243,-2802.87,0.00019451,2]
[363331415,1748679047252,-968.67,0.00019451,2]
[363331416,1748679047261,-430.0,0.00019452,2]
[363331417,1748679047271,-584.55,0.00019452,2]
[363331418,1748679047280,-430.0,0.00019452,2]
[363331419,1748679047290,-430.0,0.00019452,2]
[363331420,1748679047299,-430.0,0.00019452,2]
[363331421,1748679047309,-430.0,0.00019452,2]
[363331422,1748679047318,-512.05798887,0.00019452,2]
[363331423,1748679047328,-482.78,0.00019452,2]
[363331424,1748679047339,-430.0,0.00019452,2]
[363331425,1748679047349,-430.0,0.00019452,2]
[363331426,1748679047359,-1777.4,0.00019452,2]
[363331427,1748679047369,-430.0,0.00019452,2]
[363331428,1748679047379,-430.0,0.00019452,2]
[363331429,1748679047392,-1228.74,0.00019452,2]
[363331430,1748679047402,-1053.6,0.00019452,2]
[363331431,1748679047411,-1564.91,0.00019452,2]
[363331432,1748679047421,-2601.47,0.00019452,2]
[363331433,1748679047431,-1723.15,0.00019452,2]
[363331434,1748679047442,-703.17,0.00019452,2]
[363331435,1748679047451,-549.63,0.00019452,2]
[363331436,1748679047463,-430.0,0.00019452,2]
[363331437,1748679047472,-430.0,0.00019452,2]
[363331438,1748679047482,-611.17,0.00019452,2]
[363331439,1748679047491,-943.81,0.00019452,2]
[363331440,1748679047500,-430.0,0.00019452,2]
[363331441,1748679047510,-665.76,0.00019452,2]
[363331442,1748679047520,-766.35,0.00019452,2]
[363331443,1748679047530,-450.97,0.00019452,2]
[363331444,1748679047539,-1196.33,0.00019452,2]
[363331445,1748679047549,-430.0,0.00019452,2]
[363331446,1748679047559,-3551.36,0.00019452,2]
[363331447,1748679047568,-153.32813419,0.00019453,2]
[363331448,1748679047578,-151.0,0.00019453,2]
[363331449,1748679047587,-151.0,0.00019481,2]
[363331450,1748679047597,-151.0,0.00019508,2]
[363331451,1748679047606,-2168.9262107,0.00019557,2]
[363331452,1748679047615,-500.0,0.000196,2]
[363331453,1748679047625,-500.0,0.000196,2]
[363331454,1748679047634,-500.0,0.000196,2]
[363331455,1748679047644,-500.0,0.000196,2]
[363331456,1748679047653,-500.0,0.000196,2]
[363331457,1748679047663,-500.0,0.00019615,2]
[363331458,1748679047672,-3061.8488444,0.00019659,2]
[363331459,1748679047682,-234.90820894,0.00019715,2]
[363331460,1748679047692,-685.27,0.00019725,2]
[363331461,1748679047701,-890.96,0.00019725,2]
[363331462,1748679047711,-819.81,0.00019725,2]
[363331463,1748679047721,-2802.87,0.00019725,2]
[363331464,1748679047730,-968.67,0.00019725,2]
[363331465,1748679047740,-430.0,0.00019726,2]
[363331466,1748679047750,-584.55,0.00019726,2]
[363331467,1748679047759,-430.0,0.00019726,2]
[363331468,1748679047769,-430.0,0.00019726,2]
[363331469,1748679047778,-430.0,0.00019726,2]
[363331470,1748679047788,-430.0,0.00019726,2]
[363331471,1748679047797,-482.78,0.00019726,2]
[363331472,1748679047806,-430.0,0.00019726,2]
[363331473,1748679047816,-430.0,0.00019726,2]
[363331474,1748679047825,-1777.4,0.00019726,2]
[363331475,1748679047834,-430.0,0.00019726,2]
[363331476,1748679047843,-430.0,0.00019726,2]
[363331477,1748679047852,-1228.74,0.00019726,2]
[363331478,1748679047861,-1053.6,0.00019726,2]
[363331479,1748679047870,-1564.91,0.00019726,2]
[363331480,1748679047880,-2601.47,0.00019726,2]
[363331481,1748679047889,-1723.15,0.00019726,2]
[363331482,1748679047898,-703.17,0.00019726,2]
[363331483,1748679047907,-549.63,0.00019726,2]
[363331484,1748679047916,-476.57376914,0.00019726,2]
[363331485,1748679047925,-525.06375496,0.00019726,2]
[363331486,1748679047934,-611.17,0.00019726,2]
[363331487,1748679047943,-943.81,0.00019726,2]
[363331488,1748679047952,-430.0,0.00019726,2]
[363331489,1748679047962,-665.76,0.00019726,2]
[363331490,1748679047971,-766.35,0.00019726,2]
[363331491,1748679047980,-450.97,0.00019726,2]
[363331492,1748679047989,-1196.33,0.00019726,2]
[363331493,1748679047999,-430.0,0.00019726,2]
[363331494,1748679048008,-3551.36,0.00019726,2]
[363331495,1748679048019,-500.0,0.00019743,2]
[363331496,1748679048028,-500.0,0.00019743,2]
[363331497,1748679048038,-500.0,0.00019792,2]
[363331498,1748679048047,-353.1652959,0.00019792,2]
[363331499,1748679048055,-151.0,0.000198,2]
[363331500,1748679048065,-2011.46126897,0.00019808,2]
[363331501,1748679048074,-2953.48246255,0.00019831,2]
[363331502,1748679048083,-500.0,0.00019892,2]
[363331503,1748679048093,-500.0,0.00019892,2]
[363331504,1748679048102,-648.034,0.00019921,2]
[363331505,1748679048111,-3061.8488444,0.00019934,2]
[363331506,1748679048122,-152.02490892,0.00019974,2]
[363331507,1748679048131,-1129.0,0.00019974,2]
[363331508,1748679048140,-152.92049861,0.00019974,2]
[363331509,1748679048150,-151.0,0.00019974,2]
[363331510,1748679048159,-151.0,0.00019974,2]
[363331511,1748679048169,-152.60665104,0.00019974,2]
[363331512,1748679048179,-151.83271428,0.00019974,2]
[363331513,1748679048188,-151.65898222,0.00019974,2]
[363331514,1748679048198,-685.27,0.00019999,2]
[363331515,1748679048208,-890.96,0.00019999,2]
[363331516,1748679048218,-819.81,0.00019999,2]
[363331517,1748679048228,-2802.87,0.00019999,2]
[363331518,1748679048237,-968.67,0.00019999,2]
[363331519,1748679048247,-430.0,0.0002,2]
[363331520,1748679048256,-584.55,0.0002,2]
[363331521,1748679048266,-430.0,0.0002,2]
[363331522,1748679048275,-430.0,0.0002,2]
[363331523,1748679048285,-430.0,0.0002,2]
[363331524,1748679048294,-250.0,0.0002,30]
[363331525,1748679048304,-430.0,0.0002,2]
[363331526,1748679048313,-482.78,0.0002,2]
[363331527,1748679048322,-430.0,0.0002,2]
[363331528,1748679048332,-1777.4,0.0002,2]
[363331529,1748679048341,-430.0,0.0002,2]
[363331530,1748679048351,-430.0,0.0002,2]
[363331531,1748679048360,-430.0,0.0002,2]
[363331532,1748679048371,-1228.74,0.0002,2]
[363331533,1748679048380,-1053.6,0.0002,2]
[363331534,1748679048392,-1564.91,0.0002,2]
[363331535,1748679048402,-2601.47,0.0002,2]
[363331536,1748679048412,-1723.15,0.0002,2]
[363331537,1748679048423,-703.17,0.0002,2]
[363331538,1748679048433,-549.63,0.0002,2]
[363331539,1748679048443,-611.17,0.0002,2]
[363331540,1748679048452,-153.37790206,0.0002,4]
[363331541,1748679048463,-943.81,0.0002,2]
[363331542,1748679048473,-430.0,0.0002,2]
[363331543,1748679048483,-665.76,0.0002,2]
[363331544,1748679048492,-766.35,0.0002,2]
[363331545,1748679048501,-450.97,0.0002,2]
[363331546,1748679048510,-1196.33,0.0002,2]
[363331547,1748679048519,-430.0,0.0002,2]
[363331548,1748679048529,-3551.36,0.0002,2]
[363331549,1748679048539,-1129.0,0.00020001,2]
[363331550,1748679048548,-151.0,0.00020001,2]
[363331551,1748679048557,-151.0,0.00020001,2]
[363331552,1748679048567,-1129.0,0.00020029,2]
[363331553,1748679048576,-201.81375087,0.00020029,2]
[363331554,1748679048586,-211.27293476,0.00020029,2]
[363331555,1748679048595,-492.26874376,0.00020033,16]
[363331556,1748679048604,-1129.0,0.00020056,2]
[363331557,1748679048614,-1129.0,0.00020084,2]
[363331558,1748679048626,-1129.0,0.00020111,2]
[363331559,1748679048741,-1129.0,0.00020138,2]
[363331560,1748679048751,-1000.0,0.00020148,2]
[363331561,1748679048760,-1005.73727577,0.00020148,2]
[363331562,1748679048769,-1000.0,0.00020148,2]
[363331563,1748679048779,-1045.48324765,0.00020163,2]
[363331564,1748679048788,-1129.0,0.00020166,2]
[363331565,1748679048797,-1129.0,0.00020193,2]
[363331566,1748679048806,-151.0,0.000202,4]
[363331567,1748679048816,-3061.8488444,0.0002021,2]
[363331568,1748679048826,-1129.0,0.00020221,2]
[363331569,1748679048836,-4000.0,0.00020232,4]
[363331570,1748679048845,-492.26874376,0.00020235,18]
[363331571,1748679048855,-1129.0,0.00020248,2]
[363331572,1748679048864,-157.03337844,0.00020264,2]
[363331573,1748679048875,-430.0,0.00020273,2]
[363331574,1748679048884,-584.55,0.00020273,2]
[363331575,1748679048893,-430.0,0.00020273,2]
[363331576,1748679048903,-430.0,0.00020273,2]
[363331577,1748679048912,-685.27,0.00020273,2]
[363331578,1748679048922,-430.0,0.00020273,2]
[363331579,1748679048931,-482.78,0.00020273,2]
[363331580,1748679048941,-430.0,0.00020273,2]
[363331581,1748679048950,-1777.4,0.00020273,2]
[363331582,1748679048958,-430.0,0.00020273,2]
[363331583,1748679048966,-430.0,0.00020273,2]
[363331584,1748679048975,-430.0,0.00020273,2]
[363331585,1748679048983,-890.96,0.00020273,2]
[363331586,1748679048991,-1228.74,0.00020273,2]
[363331587,1748679049000,-1053.6,0.00020273,2]
[363331588,1748679049008,-1564.91,0.00020273,2]
[363331589,1748679049017,-2601.47,0.00020273,2]
[363331590,1748679049026,-1723.15,0.00020273,2]
[363331591,1748679049035,-703.17,0.00020273,2]
[363331592,1748679049043,-549.63,0.00020273,2]
[363331593,1748679049051,-819.81,0.00020273,2]
[363331594,1748679049059,-611.17,0.00020273,2]
[363331595,1748679049068,-943.81,0.00020273,2]
[363331596,1748679049078,-2802.87,0.00020273,2]
[363331597,1748679049087,-430.0,0.00020273,2]
[363331598,1748679049097,-665.76,0.00020273,2]
[363331599,1748679049107,-766.35,0.00020273,2]
[363331600,1748679049116,-450.97,0.00020273,2]
[363331601,1748679049126,-1196.33,0.00020273,2]
[363331602,1748679049135,-968.67,0.00020273,2]
[363331603,1748679049145,-3551.36,0.00020273,2]
[363331604,1748679049154,-212.0,0.00020274,3]
[363331605,1748679049163,-1129.0,0.00020275,2]
[363331606,1748679049172,-501.40980731,0.00020291,2]
[363331607,1748679049182,-1129.0,0.00020303,2]
[363331608,1748679049191,-500.0,0.00020313,2]
[363331609,1748679049200,-500.0,0.00020313,2]
[363331610,1748679049209,-500.0,0.00020313,2]
[363331611,1748679049219,-500.0,0.00020313,2]
[363331612,1748679049228,-538.55931184,0.00020313,2]
[363331613,1748679049238,-500.0,0.00020313,2]
[363331614,1748679049247,-528.85647862,0.00020313,2]
[363331615,1748679049257,-502.06570242,0.00020313,2]
[363331616,1748679049266,-500.0,0.00020313,2]
[363331617,1748679049275,-500.0,0.00020313,2]
[363331618,1748679049285,-500.0,0.00020313,2]
[363331619,1748679049294,-176.25974023,0.00020313,2]
[363331620,1748679049303,-500.0,0.00020313,2]
[363331621,1748679049313,-600.0,0.00020313,2]
[363331622,1748679049321,-1129.0,0.0002033,2]
[363331623,1748679049331,-1000.0,0.0002034,2]
[363331624,1748679049340,-900.0,0.00020356,2]
[363331625,1748679049348,-1129.0,0.00020358,2]
[363331626,1748679049356,-1129.0,0.00020385,2]
[363331627,1748679049365,-1129.0,0.00020412,2]
[363331628,1748679049376,-492.26874376,0.00020437,19]
[363331629,1748679049386,-1129.0,0.0002044,2]
[363331630,1748679049398,-1000.0,0.0002044,2]
[363331631,1748679049408,-166.72201378,0.00020447,2]
[363331632,1748679049417,-2168.9262107,0.00020447,2]
[363331633,1748679049426,-1129.0,0.00020467,2]
[363331634,1748679049437,-3061.8488444,0.00020486,3]
[363331635,1748679049446,-1129.0,0.00020495,2]
[363331636,1748679049456,-1129.0,0.00020522,2]
[363331637,1748679049465,-160.0,0.00020547,2]
[363331638,1748679049476,-430.0,0.00020547,2]
[363331639,1748679049485,-584.55,0.00020547,2]
[363331640,1748679049495,-430.0,0.00020547,2]
[363331641,1748679049505,-430.0,0.00020547,2]
[363331642,1748679049516,-685.27,0.00020547,2]
[363331643,1748679049526,-430.0,0.00020547,2]
[363331644,1748679049536,-482.78,0.00020547,2]
[363331645,1748679049546,-438.31321323,0.00020547,2]
[363331646,1748679049556,-1777.4,0.00020547,2]
[363331647,1748679049566,-392.09617935,0.00020547,2]
[363331648,1748679049576,-890.96,0.00020547,2]
[363331649,1748679049587,-1228.74,0.00020547,2]
[363331650,1748679049597,-1053.6,0.00020547,2]
[363331651,1748679049607,-1564.91,0.00020547,2]
[363331652,1748679049617,-2601.47,0.00020547,2]
[363331653,1748679049628,-1723.15,0.00020547,2]
[363331654,1748679049638,-703.17,0.00020547,2]
[363331655,1748679049648,-549.63,0.00020547,2]
[363331656,1748679049657,-819.81,0.00020547,2]
[363331657,1748679049667,-611.17,0.00020547,2]
[363331658,1748679049676,-943.81,0.00020547,2]
[363331659,1748679049685,-2802.87,0.00020547,2]
[363331660,1748679049695,-430.0,0.00020547,2]
[363331661,1748679049705,-665.76,0.00020547,2]
[363331662,1748679049714,-766.35,0.00020547,2]
[363331663,1748679049723,-450.97,0.00020547,2]
[363331664,1748679049733,-1196.33,0.00020547,2]
[363331665,1748679049742,-968.67,0.00020547,2]
[363331666,1748679049751,-3551.36,0.00020547,2]
[363331667,1748679049760,-1129.0,0.00020549,2]
[363331668,1748679049771,-1129.0,0.00020577,2]
[363331669,1748679049780,-10545.21,0.000206,2]
[363331670,1748679049789,-51234.44728515,0.000206,2]
[363331671,1748679049898,-9254.78956721,0.000206,2]
[363331673,1748679243327,-197.9765116,0.00016397,2]
[363331674,1748679243354,-430.0,0.00016438,2]
[363331675,1748679243380,-430.0,0.00016438,2]
[363331676,1748679243406,-627.97,0.00016438,2]
[363331677,1748679243430,-430.0,0.00016438,2]
[363331678,1748679243456,-911.43,0.00016438,2]
[363331679,1748679243488,-562.16,0.00016438,2]
[363331680,1748679243513,-430.0,0.00016438,2]
[363331681,1748679243538,-430.0,0.00016438,2]
[363331682,1748679243567,-430.0,0.00016438,2]
[363331683,1748679243591,-430.0,0.00016438,2]
[363331684,1748679243616,-275.97330177,0.00016438,2]
[363331685,1748679243641,-430.0,0.00016438,2]
[363331686,1748679243664,-430.0,0.00016438,2]
[363331687,1748679243691,-430.0,0.00016438,2]
[363331688,1748679243716,-430.0,0.00016438,2]
[363331689,1748679243739,-430.0,0.00016438,2]
[363331690,1748679243765,-472.31,0.00016438,2]
[363331691,1748679243795,-966.27,0.00016438,2]
[363331692,1748679243821,-430.0,0.00016438,2]
[363331693,1748679243844,-430.0,0.00016438,2]
[363331694,1748679243868,-430.0,0.00016438,2]
[363331695,1748679243891,-306.33,0.00016438,2]
[363331696,1748679243915,-430.0,0.00016438,2]
[363331697,1748679243941,-656.11,0.00016438,2]
[363331698,1748679243965,-430.0,0.00016438,2]
[363331699,1748679243989,-1211.05,0.00016438,2]
[363331700,1748679244012,-430.0,0.00016438,2]
[363331701,1748679244036,-430.0,0.00016438,2]
[363331702,1748679244061,-430.0,0.00016438,2]
[363331703,1748679244086,-430.0,0.00016438,2]
[363331704,1748679244113,-430.0,0.00016438,2]
[363331705,1748679244137,-494.91539089,0.00016438,2]
[363331706,1748679244162,-430.0,0.00016438,2]
[363331707,1748679244187,-430.0,0.00016438,2]
[363331708,1748679244212,-430.0,0.00016438,2]
[363331709,1748679244236,-430.0,0.00016438,2]
[363331710,1748679244261,-430.0,0.00016438,2]
[363331711,1748679244286,-436.25,0.00016438,2]
[363331712,1748679244312,-430.0,0.00016438,2]
[363331713,1748679244337,-430.0,0.00016438,2]
[363331714,1748679244361,-430.0,0.00016438,2]
[363331715,1748679244385,-430.0,0.00016438,2]
[363331716,1748679244408,-246.84,0.00016438,2]
[363331717,1748679244431,-430.0,0.00016438,2]
[363331718,1748679244457,-1255.46,0.00016438,2]
[363331719,1748679244485,-430.0,0.00016438,2]
[363331720,1748679244509,-430.0,0.00016438,2]
[363331721,1748679244534,-579.2,0.00016438,2]
[363331722,1748679244564,-430.0,0.00016438,2]
[363331723,1748679244589,-430.0,0.00016438,2]
[363331724,1748679244613,-430.0,0.00016438,2]
[363331725,1748679244637,-248.71918973,0.00016612,2]
[363331726,1748679244663,-430.0,0.00016712,2]
[363331727,1748679244688,-430.0,0.00016712,2]
[363331728,1748679244716,-627.97,0.00016712,2]
[363331729,1748679244744,-911.43,0.00016712,2]
[363331730,1748679244777,-562.16,0.00016712,2]
[363331731,1748679244813,-430.0,0.00016712,2]
[363331732,1748679244841,-430.0,0.00016712,2]
[363331733,1748679244867,-430.0,0.00016712,2]
[363331734,1748679244894,-389.47560601,0.00016712,2]
[363331735,1748679301401,-430.0,0.00016438,2]
[363331736,1748679301425,-430.0,0.00016438,2]
[363331737,1748679301448,-430.0,0.00016438,2]
[363331738,1748679301476,-430.0,0.00016438,2]
[363331739,1748679301501,-430.0,0.00016438,2]
[363331740,1748679301526,-430.0,0.00016438,2]
[363331741,1748679301550,-430.0,0.00016438,2]
[363331742,1748679301575,-542.76,0.00016438,2]
[363331743,1748679301600,-430.0,0.00016438,2]
[363331744,1748679301622,-430.0,0.00016438,2]
[363331745,1748679301645,-430.0,0.00016438,2]
[363331746,1748679301669,-430.0,0.00016438,2]
[363331747,1748679301692,-430.0,0.00016438,2]
[363331748,1748679301715,-430.0,0.00016438,2]
[363331749,1748679301736,-160.0,0.00016438,2]
[363331750,1748679301759,-430.0,0.00016438,2]
[363331751,1748679301782,-799.25,0.00016438,2]
[363331752,1748679301805,-430.0,0.00016438,2]
[363331753,1748679301829,-430.0,0.00016438,2]
[363331754,1748679301854,-430.0,0.00016438,2]
[363331755,1748679301876,-430.0,0.00016438,2]
[363331756,1748679301899,-430.0,0.00016438,2]
[363331757,1748679301924,-430.0,0.00016438,2]
[363331758,1748679301957,-484.04,0.00016438,2]
[363331759,1748679301986,-430.0,0.00016438,2]
[363331760,1748679302009,-430.0,0.00016438,2]
[363331761,1748679302032,-208.01709331,0.00016711,2]
[363331762,1748679302056,-82.83439399,0.00016712,2]
[363331763,1748679302081,-966.27,0.00016712,2]
[363331764,1748679302106,-430.0,0.00016712,2]
[363331765,1748679302133,-656.11,0.00016712,2]
[363331766,1748679302159,-1210.7185127,0.00016712,2]
[363331965,1748679591518,4325.0,0.000141,2]
[363331970,1748679633307,161.441727,0.00013699,2]
[363331976,1748679930139,-676.15836872,0.00015258,2]
[363331977,1748679930162,-466.0996478,0.00015412,2]
[363331978,1748679930185,-165.87043,0.00016142,2]
[363331979,1748679930207,-250.0,0.00016142,2]
[363331980,1748679930230,-165.87043,0.00016223,2]
[363331981,1748679930251,-348.89437625,0.00016338,2]
[363331982,1748679930272,-162.47413528,0.00016338,2]
[363331983,1748679930294,-300.0,0.00016436,2]
[363331984,1748679930314,-300.0,0.00016436,2]
[363331985,1748679930335,-300.0,0.00016436,2]
[363331986,1748679930356,-300.0,0.00016436,2]
[363331987,1748679930376,-300.0,0.00016436,2]
[363331988,1748679930398,-1200.0,0.00016436,2]
[363331989,1748679930418,-1000.0,0.00016437,2]
[363331990,1748679930440,-500.0,0.00016437,2]
[363331991,1748679930461,-500.0,0.00016437,2]
[363331992,1748679930483,-500.0,0.00016437,2]
[363331993,1748679930505,-500.0,0.00016437,2]
[363331994,1748679930528,-500.0,0.00016437,2]
[363331995,1748679930551,-445.93595448,0.00016437,2]
[363331996,1748679930573,-500.0,0.00016437,2]
[363331997,1748679930598,-216.55933451,0.00016437,2]
[363331998,1748679930621,-197.58006854,0.00016437,2]
[363331999,1748679930644,-394.11101382,0.00016437,2]
[363332000,1748679930672,-500.0,0.00016437,2]
[363332001,1748679930695,-606.29134542,0.00016437,2]
[363332002,1748679930722,-622.58198114,0.00016437,2]
[363332003,1748679930748,-500.0,0.00016437,2]
[363332004,1748679930774,-500.0,0.00016437,2]
[363332005,1748679930804,-411.83548739,0.00016437,2]
[363332006,1748679934767,5000.0,0.00024658,120]
[363332009,1748679943956,5000.0,0.00024658,120]
[363332014,1748679954989,3000.0,0.00024658,120]
[363332019,1748679996384,500.0,0.00024658,120]
[363332020,1748680028382,5000.0,0.00021918,60]
[363332021,1748680030099,-305.28257921,0.00016338,2]
[363332022,1748680030121,-300.0,0.00016437,2]
[363332023,1748680030143,-276.01029284,0.00016437,2]
[363332027,1748680043095,-23.98970716,0.00016437,2]
[363332028,1748680043118,-463.75281505,0.00016438,2]
[363332029,1748680043139,-430.0,0.00016438,2]
[363332030,1748680043159,-430.0,0.00016438,2]
[363332031,1748680043181,-430.0,0.00016438,2]
[363332032,1748680043202,-430.0,0.00016438,2]
[363332033,1748680043225,-430.0,0.00016438,2]
[363332034,1748680043248,-181.37108536,0.00016438,2]
[363332035,1748680043275,-248.62891464,0.00016438,2]
[363332036,1748680043297,-547.65,0.00016438,2]
[363332037,1748680043320,-430.0,0.00016438,2]
[363332038,1748680043343,-430.0,0.00016438,2]
[363332039,1748680043365,-430.0,0.00016438,2]
[363332040,1748680043387,-230.68110136,0.00016438,2]
[363332041,1748680044107,5000.0,0.00024658,120]
[363332042,1748680049147,-430.0,0.00016438,2]
[363332043,1748680049169,-70.86799031,0.00016438,2]
[363332047,1748680147113,-628.5841702,0.00016273,2]
[363332048,1748680148135,-1628.46500296,0.00016273,2]
[363332058,1748680156117,-582.8532082,0.00016273,2]
[363332059,1748680156144,-57.10161085,0.00016273,2]
[363332060,1748680162149,-300.0,0.00016436,2]
[363332061,1748680162169,-2.48834161,0.00016437,2]
[363332062,1748680168128,-236.14320043,0.00016437,2]
[363332072,1748680208878,3196.19,0.00024657,120]
[363332131,1748680232757,-267.1222568,0.00016338,2]
[363332133,1748680232767,-1200.0,0.00016436,2]
[363332135,1748680232776,-761.36845796,0.00016437,2]
[363332137,1748680232786,-1000.0,0.00016437,2]
[363332139,1748680232796,-1141.93895322,0.00016437,2]
[363332141,1748680232806,-300.0,0.00016437,2]
[363332143,1748680232815,-300.0,0.00016437,2]
[363332145,1748680232824,-300.0,0.00016437,2]
[363332147,1748680232833,-430.0,0.00016438,2]
[363332149,1748680232842,-430.0,0.00016438,2]
[363332151,1748680232851,-430.0,0.00016438,2]
[363332153,1748680232861,-404.49380786,0.00016438,2]
[363332155,1748680232870,-430.0,0.00016438,2]
[363332157,1748680232879,-430.0,0.00016438,2]
[363332159,1748680232888,-274.2,0.00016438,2]
[363332161,1748680232899,-430.0,0.00016438,2]
[363332163,1748680232908,-430.0,0.00016438,2]
[363332165,1748680232917,-430.0,0.00016438,2]
[363332166,1748680232928,-427.77189891,0.00016438,2]
[363332168,1748680232937,-422.54025893,0.00016438,2]
[363332170,1748680232946,-430.0,0.00016438,2]
[363332172,1748680232960,-459.2,0.00016438,2]
[363332174,1748680232969,-430.0,0.00016438,2]
[363332176,1748680232979,-430.0,0.00016438,2]
[363332178,1748680232988,-420.0,0.00016438,2]
[363332180,1748680232998,-430.0,0.00016438,2]
[363332181,1748680233008,-430.0,0.00016438,2]
[363332183,1748680233018,-430.0,0.00016438,2]
[363332184,1748680233030,-430.0,0.00016438,2]
[363332185,1748680233039,-430.0,0.00016438,2]
[363332186,1748680233049,-430.0,0.00016438,2]
[363332187,1748680233059,-430.0,0.00016438,2]
[363332188,1748680233073,-441.32,0.00016438,2]
[363332189,1748680233083,-430.0,0.00016438,2]
[363332190,1748680233092,-430.0,0.00016438,2]
[363332191,1748680233103,-430.0,0.00016438,2]
[363332192,1748680233113,-430.0,0.00016438,2]
[363332193,1748680233122,-430.0,0.00016438,2]
[363332194,1748680233132,-430.0,0.00016438,2]
[363332195,1748680233141,-430.0,0.00016438,2]
[363332196,1748680233151,-430.0,0.00016438,2]
[363332197,1748680233161,-430.0,0.00016438,2]
[363332198,1748680233171,-430.0,0.00016438,2]
[363332199,1748680233180,-430.0,0.00016438,2]
[363332200,1748680233190,-430.0,0.00016438,2]
[363332201,1748680233200,-430.0,0.00016438,2]
[363332202,1748680233210,-732.35,0.00016438,2]
[363332203,1748680233219,-1677.22,0.00016438,2]
[363332204,1748680233229,-430.0,0.00016438,2]
[363332205,1748680233239,-430.0,0.00016438,2]
[363332206,1748680233248,-430.0,0.00016438,2]
[363332207,1748680233258,-430.0,0.00016438,2]
[363332208,1748680233267,-430.0,0.00016438,2]
[363332209,1748680233276,-430.0,0.00016438,2]
[363332210,1748680233286,-430.0,0.00016438,2]
[363332211,1748680233296,-524.95,0.00016438,2]
[363332212,1748680233306,-965.51,0.00016438,2]